fUSD/lending_fUSD_20260202
["ID","MTS","AMOUNT","RATE_DAILY","PERIOD"]
[404251960,1770005443123,-500.0,0.00015473,2]
[404251961,1770005443132,-550.09529227,0.00015473,2]
[404251962,1770005443142,-500.0,0.00015473,2]
[404251963,1770005443152,-500.0,0.00015473,2]
[404251964,1770005443162,-291.61164288,0.00015473,2]
[404251965,1770005443174,-500.0,0.00015473,2]
[404251966,1770005443183,-500.0,0.00015473,2]
[404251967,1770005443193,-500.0,0.00015473,2]
[404251968,1770005443203,-501.96102054,0.00015473,2]
[404251969,1770005443213,-11540.0,0.00015479,2]
[404251970,1770005443222,-150.0,0.0001548,2]
[404251971,1770005443232,-502.58606098,0.0001549,2]
[404251972,1770005443242,-200.0,0.000155,2]
[404251973,1770005443251,-200.0,0.000155,2]
[404251974,1770005443261,-200.0,0.000155,2]
[404251975,1770005443270,-151.0,0.000155,2]
[404251976,1770005443280,-1503.0,0.000155,2]
[404251977,1770005443289,-151.0,0.000155,2]
[404251978,1770005443298,-1503.0,0.000155,2]
[404251979,1770005443308,-151.0,0.000155,2]
[404251980,1770005443317,-1503.0,0.000155,2]
[404251981,1770005443331,-151.0,0.000155,2]
[404251982,1770005443341,-1503.0,0.000155,2]
[404251983,1770005443568,-151.0,0.000155,2]
[404251984,1770005443580,-1503.0,0.000155,2]
[404251985,1770005443590,-1503.0,0.000155,2]
[404251986,1770005443599,-151.0,0.000155,2]
[404251987,1770005443609,-1503.0,0.000155,2]
[404251988,1770005443618,-151.0,0.000155,2]
[404251989,1770005443627,-1503.0,0.000155,2]
[404251991,1770005443636,-151.0,0.000155,2]
[404251992,1770005443645,-1503.0,0.000155,2]
[404251993,1770005443654,-151.0,0.000155,2]
[404251994,1770005443664,-1503.0,0.000155,2]
[404251995,1770005443673,-151.0,0.000155,2]
[404251996,1770005443683,-151.0,0.000155,2]
[404251997,1770005443692,-1503.0,0.000155,2]
[404251998,1770005443701,-151.0,0.000155,2]
[404251999,1770005443711,-1503.0,0.000155,2]
[404252000,1770005443720,-1503.0,0.000155,2]
[404252001,1770005443728,-151.0,0.000155,2]
[404252002,1770005443738,-1503.0,0.000155,2]
[404252003,1770005443747,-1503.0,0.000155,2]
[404252005,1770005443756,-151.0,0.000155,2]
[404252006,1770005443765,-1503.0,0.000155,2]
[404252008,1770005443775,-151.0,0.000155,2]
[404252010,1770005443784,-1503.0,0.000155,2]
[404252011,1770005443793,-151.0,0.000155,2]
[404252012,1770005443802,-1503.0,0.000155,2]
[404252013,1770005443811,-151.0,0.000155,2]
[404252014,1770005443822,-1503.0,0.000155,2]
[404252015,1770005443830,-151.0,0.000155,2]
[404252016,1770005443840,-1503.0,0.000155,2]
[404252017,1770005443849,-151.0,0.000155,2]
[404252018,1770005443858,-1503.0,0.000155,2]
[404252019,1770005443868,-151.0,0.000155,2]
[404252020,1770005443877,-1503.0,0.000155,2]
[404252021,1770005443886,-151.0,0.000155,2]
[404252022,1770005443895,-1503.0,0.000155,2]
[404252023,1770005443904,-151.0,0.000155,2]
[404252024,1770005443914,-1503.0,0.000155,2]
[404252025,1770005443923,-151.0,0.000155,2]
[404252026,1770005443932,-1503.0,0.000155,2]
[404252027,1770005443941,-151.0,0.000155,2]
[404252028,1770005443950,-1503.0,0.000155,2]
[404252029,1770005443959,-151.0,0.000155,2]
[404252030,1770005443969,-1503.0,0.000155,2]
[404252031,1770005443977,-151.0,0.000155,2]
[404252032,1770005443986,-1503.0,0.000155,2]
[404252033,1770005443995,-1503.0,0.000155,2]
[404252034,1770005444004,-1503.0,0.000155,2]
[404252035,1770005444014,-1273.90301283,0.000155,2]
[404252036,1770005444023,-165.75340433,0.000155,2]
[404252037,1770005444033,-200.0,0.000155,2]
[404252038,1770005444042,-1503.0,0.000155,2]
[404252039,1770005444052,-221.35945372,0.000155,2]
[404252040,1770005444062,-1503.0,0.000155,2]
[404252041,1770005444071,-151.0,0.000155,2]
[404252042,1770005444081,-151.0,0.000155,2]
[404252043,1770005444091,-1398.55,0.00015512,2]
[404252044,1770005444104,-1689.82698396,0.0001553,2]
[404252045,1770005444114,-500.0,0.00015534,2]
[404252046,1770005444123,-16283.79473793,0.00015578,2]
[404252047,1770005444132,-150.00045973,0.00015582,2]
[404252048,1770005444142,-1547.3093134,0.00015586,2]
[404252049,1770005444152,-15553.21923692,0.00015602,2]
[404252050,1770005444161,-200.0,0.00015655,2]
[404252051,1770005444171,-200.0,0.00015655,2]
[404252052,1770005444180,-200.0,0.00015655,2]
[404252053,1770005444189,-200.0,0.00015655,2]
[404252054,1770005444198,-507.22,0.00015753,2]
[404252055,1770005444208,-151.49674582,0.00015771,2]
[404252056,1770005444217,-174.61919141,0.00015771,2]
[404252057,1770005444227,-500.0,0.00015771,2]
[404252058,1770005444236,-1428.38747117,0.00015771,2]
[404252059,1770005444246,-500.0,0.00015771,2]
[404252060,1770005444255,-500.0,0.00015771,2]
[404252061,1770005444264,-500.0,0.00015771,2]
[404252062,1770005444273,-322.6107,0.00015771,2]
[404252063,1770005444282,-500.0,0.00015771,2]
[404252064,1770005444291,-500.0,0.00015771,2]
[404252065,1770005444301,-500.0,0.00015771,2]
[404252066,1770005444310,-500.0,0.00015771,2]
[404252067,1770005444319,-500.0,0.00015771,2]
[404252068,1770005444331,-500.0,0.00015771,2]
[404252069,1770005444340,-500.0,0.00015771,2]
[404252070,1770005444349,-500.0,0.00015771,2]
[404252071,1770005444358,-500.0,0.00015771,2]
[404252072,1770005444367,-500.0,0.00015771,2]
[404252073,1770005444376,-500.0,0.00015771,2]
[404252074,1770005444386,-500.0,0.00015771,2]
[404252075,1770005444395,-500.0,0.00015771,2]
[404252076,1770005444404,-500.0,0.00015771,2]
[404252077,1770005444413,-168.90333538,0.00015771,2]
[404252078,1770005444422,-500.0,0.00015771,2]
[404252079,1770005444431,-500.0,0.00015771,2]
[404252080,1770005444440,-721.12765535,0.00015771,2]
[404252081,1770005444450,-250.0,0.00015771,2]
[404252082,1770005444459,-500.0,0.00015771,2]
[404252083,1770005444468,-500.0,0.00015771,2]
[404252084,1770005444477,-250.0,0.00015771,2]
[404252085,1770005444486,-500.0,0.00015771,2]
[404252086,1770005444495,-500.0,0.00015771,2]
[404252087,1770005444505,-250.0,0.00015771,2]
[404252088,1770005444514,-500.0,0.00015771,2]
[404252089,1770005444524,-500.0,0.00015771,2]
[404252090,1770005444533,-500.0,0.00015771,2]
[404252091,1770005444542,-250.0,0.00015771,2]
[404252092,1770005444552,-500.0,0.00015771,2]
[404252093,1770005444560,-500.0,0.00015771,2]
[404252094,1770005444569,-250.0,0.00015771,2]
[404252095,1770005444580,-500.0,0.00015771,2]
[404252096,1770005444589,-250.0,0.00015771,2]
[404252097,1770005444598,-500.0,0.00015771,2]
[404252098,1770005444608,-250.0,0.00015771,2]
[404252099,1770005444616,-500.0,0.00015771,2]
[404252100,1770005444625,-250.0,0.00015771,2]
[404252101,1770005444635,-500.0,0.00015771,2]
[404252102,1770005444644,-250.0,0.00015771,2]
[404252103,1770005444653,-250.0,0.00015771,2]
[404252104,1770005444662,-250.0,0.00015771,2]
[404252105,1770005444671,-578.20924308,0.00015771,2]
[404252106,1770005444680,-250.0,0.00015771,2]
[404252107,1770005444689,-250.0,0.00015771,2]
[404252108,1770005444699,-250.0,0.00015771,2]
[404252109,1770005444708,-250.0,0.00015771,2]
[404252110,1770005444717,-250.0,0.00015771,2]
[404252111,1770005444726,-151.0,0.00015771,2]
[404252112,1770005444735,-250.0,0.00015771,2]
[404252113,1770005444744,-151.0,0.00015771,2]
[404252114,1770005444753,-250.0,0.00015771,2]
[404252115,1770005444763,-250.0,0.00015771,2]
[404252116,1770005444772,-151.0,0.00015771,2]
[404252117,1770005444781,-250.0,0.00015771,2]
[404252118,1770005444790,-250.0,0.00015771,2]
[404252119,1770005444799,-151.0,0.00015771,2]
[404252120,1770005444809,-250.0,0.00015771,2]
[404252121,1770005444818,-250.0,0.00015771,2]
[404252122,1770005444829,-250.0,0.00015771,2]
[404252123,1770005444839,-500.0,0.00015771,2]
[404252124,1770005444848,-250.0,0.00015771,2]
[404252125,1770005444858,-250.0,0.00015771,2]
[404252126,1770005444867,-500.0,0.00015771,2]
[404252127,1770005444877,-250.0,0.00015771,2]
[404252128,1770005444886,-250.0,0.00015771,2]
[404252129,1770005444896,-500.0,0.00015771,2]
[404252130,1770005444905,-500.0,0.00015771,2]
[404252131,1770005444914,-250.0,0.00015771,2]
[404252132,1770005444924,-500.0,0.00015771,2]
[404252133,1770005444934,-250.0,0.00015771,2]
[404252134,1770005444943,-500.0,0.00015771,2]
[404252135,1770005444952,-250.0,0.00015771,2]
[404252136,1770005444962,-500.0,0.00015771,2]
[404252137,1770005444972,-250.0,0.00015771,2]
[404252138,1770005444981,-500.0,0.00015771,2]
[404252139,1770005444991,-250.0,0.00015771,2]
[404252140,1770005445000,-500.0,0.00015771,2]
[404252141,1770005445009,-500.0,0.00015771,2]
[404252142,1770005445019,-344.38825217,0.00015771,2]
[404252143,1770005445028,-151.0,0.00015771,2]
[404252144,1770005445038,-500.0,0.00015771,2]
[404252145,1770005445047,-151.0,0.00015771,2]
[404252146,1770005445056,-500.0,0.00015771,2]
[404252147,1770005445066,-151.0,0.00015771,2]
[404252148,1770005445076,-500.0,0.00015771,2]
[404252149,1770005445085,-151.0,0.00015771,2]
[404252150,1770005445097,-500.0,0.00015771,2]
[404252151,1770005445112,-151.0,0.00015771,2]
[404252152,1770005445122,-500.0,0.00015771,2]
[404252153,1770005445132,-151.0,0.00015771,2]
[404252154,1770005445143,-500.0,0.00015771,2]
[404252155,1770005445152,-500.0,0.00015771,2]
[404252156,1770005445162,-151.0,0.00015771,2]
[404252157,1770005445172,-500.0,0.00015771,2]
[404252158,1770005445182,-500.0,0.00015771,2]
[404252159,1770005445192,-500.0,0.00015771,2]
[404252160,1770005445202,-500.0,0.00015771,2]
[404252161,1770005445211,-209.40437684,0.00015771,2]
[404252162,1770005445221,-209.40437684,0.00015771,2]
[404252163,1770005445231,-250.0,0.00015771,2]
[404252164,1770005445241,-250.0,0.00015771,2]
[404252165,1770005445250,-250.0,0.00015771,2]
[404252166,1770005445260,-250.0,0.00015771,2]
[404252167,1770005445270,-250.0,0.00015771,2]
[404252168,1770005445279,-500.0,0.00015771,2]
[404252169,1770005445289,-250.0,0.00015771,2]
[404252170,1770005445298,-500.0,0.00015771,2]
[404252171,1770005445307,-250.0,0.00015771,2]
[404252172,1770005445318,-500.0,0.00015771,2]
[404252173,1770005445329,-250.0,0.00015771,2]
[404252174,1770005445338,-500.0,0.00015771,2]
[404252175,1770005445348,-250.0,0.00015771,2]
[404252176,1770005445358,-500.0,0.00015771,2]
[404252177,1770005445367,-250.0,0.00015771,2]
[404252178,1770005445376,-500.0,0.00015771,2]
[404252179,1770005445385,-250.0,0.00015771,2]
[404252180,1770005445394,-500.0,0.00015771,2]
[404252181,1770005445404,-500.0,0.00015771,2]
[404252182,1770005445413,-500.0,0.00015771,2]
[404252183,1770005445423,-500.0,0.00015771,2]
[404252184,1770005445432,-500.0,0.00015771,2]
[404252185,1770005445442,-859.80605061,0.00015771,2]
[404252186,1770005445451,-209.40437684,0.00015771,2]
[404252187,1770005445461,-433.0,0.00015785,2]
[404252188,1770005445471,-166.66,0.00015798,2]
[404252189,1770005445480,-20721.1863027,0.00015802,2]
[404252190,1770005445489,-200.0,0.00015812,2]
[404252191,1770005445498,-200.0,0.00015812,2]
[404252192,1770005445507,-200.0,0.00015812,2]
[404252193,1770005445516,-200.0,0.00015812,2]
[404252194,1770005445526,-217.15233878,0.00015826,2]
[404252195,1770005445535,-239.86447206,0.00015827,2]
[404252196,1770005445545,-5009.59871772,0.00015827,2]
[404252197,1770005445554,-167.82792388,0.00015832,2]
[404252198,1770005445564,-5078.12966612,0.00015879,2]
[404252199,1770005445573,-225.18697532,0.00015881,2]
[404252200,1770005445583,-245.72294872,0.00015887,2]
[404252201,1770005445592,-1000.0,0.00015918,2]
[404252202,1770005445604,-233.51889341,0.00015936,2]
[404252203,1770005445613,-200.0,0.0001597,2]
[404252204,1770005445622,-200.0,0.0001597,2]
[404252205,1770005445632,-200.0,0.0001597,2]
[404252206,1770005445641,-200.0,0.0001597,2]
[404252207,1770005445651,-330.79,0.00015988,2]
[404252208,1770005445661,-242.15909246,0.00015991,2]
[404252209,1770005445670,-956.83032625,0.00016,2]
[404252210,1770005445679,-270.91542523,0.00016,2]
[404252211,1770005445689,-421.15115649,0.00016,2]
[404252212,1770005445698,-234.74,0.00016,2]
[404252213,1770005445707,-2834.0,0.00016,2]
[404252214,1770005445716,-150.0,0.00016,2]
[404252215,1770005445726,-2351.0,0.00016001,2]
[404252216,1770005445735,-500.0,0.00016012,2]
[404252217,1770005445744,-899.10712823,0.00016021,2]
[404252218,1770005445753,-1000.0,0.00016021,2]
[404252219,1770005445762,-1003.91068608,0.00016021,2]
[404252220,1770005445771,-1000.0,0.00016021,2]
[404252221,1770005445780,-1000.0,0.00016021,2]
[404252222,1770005445789,-1000.0,0.00016021,2]
[404252223,1770005445799,-1000.0,0.00016021,2]
[404252224,1770005445808,-1000.0,0.00016021,2]
[404252225,1770005445817,-1000.0,0.00016021,2]
[404252226,1770005445827,-1000.0,0.00016021,2]
[404252227,1770005445836,-1000.0,0.00016021,2]
[404252228,1770005445846,-1000.0,0.00016021,2]
[404252229,1770005445855,-1000.0,0.00016021,2]
[404252230,1770005445864,-1000.0,0.00016021,2]
[404252231,1770005445873,-501.09302375,0.00016021,2]
[404252232,1770005445883,-1000.0,0.00016021,2]
[404252233,1770005445892,-501.94112039,0.00016021,2]
[404252234,1770005445901,-501.89927416,0.00016021,2]
[404252235,1770005445911,-1000.0,0.00016021,2]
[404252236,1770005445920,-1003.27979337,0.00016021,2]
[404252237,1770005445929,-586.45296103,0.00016021,2]
[404252238,1770005445938,-1000.0,0.00016021,2]
[404252239,1770005445947,-1000.0,0.00016021,2]
[404252240,1770005445956,-1000.0,0.00016021,2]
[404252241,1770005445966,-1000.0,0.00016021,2]
[404252242,1770005445975,-1018.80564021,0.00016021,2]
[404252243,1770005445984,-1000.0,0.00016021,2]
[404252244,1770005445993,-1000.0,0.00016021,2]
[404252245,1770005446003,-1000.0,0.00016021,2]
[404252246,1770005446012,-1000.0,0.00016021,2]
[404252247,1770005446022,-1000.0,0.00016021,2]
[404252248,1770005446032,-1000.0,0.00016021,2]
[404252249,1770005446042,-501.08336444,0.00016021,2]
[404252251,1770005446051,-1003.56149344,0.00016021,2]
[404252252,1770005446061,-1000.0,0.00016021,2]
[404252253,1770005446071,-1000.0,0.00016021,2]
[404252254,1770005446085,-1000.0,0.00016021,2]
[404252255,1770005446095,-1145.60955598,0.00016021,2]
[404252256,1770005446108,-1000.0,0.00016021,2]
[404252257,1770005446118,-164.61,0.00016037,2]
[404252258,1770005446127,-16283.79473793,0.00016042,2]
[404252259,1770005446139,-251.11897888,0.00016046,2]
[404252260,1770005446148,-15553.21923692,0.00016061,2]
[404252261,1770005446158,-660.63,0.00016082,2]
[404252262,1770005446168,-150.0,0.000161,2]
[404252263,1770005446178,-260.4103811,0.00016101,2]
[404252264,1770005446188,-151.0,0.00016116,2]
[404252265,1770005446197,-297.581403,0.00016116,2]
[404252266,1770005446207,-464.87,0.00016116,2]
[404252267,1770005446216,-999.99,0.00016116,2]
[404252268,1770005446226,-9999.99,0.00016116,2]
[404252269,1770005446235,-127685.29,0.00016116,2]
[404252270,1770005446245,-4999.99,0.00016116,2]
[404252271,1770005446254,-9999.99,0.00016116,2]
[404252272,1770005446264,-9999.99,0.00016116,2]
[404252273,1770005446274,-9999.99,0.00016116,2]
[404252274,1770005446284,-10341.72,0.00016116,2]
[404252275,1770005446294,-14009.2,0.00016116,2]
[404252276,1770005446304,-150.99,0.00016116,2]
[404252277,1770005446313,-9999.99,0.00016116,2]
[404252278,1770005446322,-9156.55,0.00016116,2]
[404252279,1770005446335,-3412.42,0.00016116,2]
[404252280,1770005446345,-150.99,0.00016116,2]
[404252281,1770005446354,-200.0,0.00016129,2]
[404252282,1770005446363,-200.0,0.00016129,2]
[404252283,1770005446375,-200.0,0.00016129,2]
[404252284,1770005446384,-200.0,0.00016129,2]
[404252285,1770005446394,-270.0455652,0.00016156,2]
[404252286,1770005446404,-151.0,0.000162,2]
[404252287,1770005446413,-233.557376,0.000162,2]
[404252288,1770005446422,-233.557376,0.000162,2]
[404252289,1770005446432,-233.557376,0.000162,2]
[404252290,1770005446441,-233.557376,0.000162,2]
[404252291,1770005446450,-1500.0,0.000162,2]
[404252292,1770005446459,-280.03725112,0.00016211,2]
[404252293,1770005446468,-500.46237197,0.00016215,2]
[404252294,1770005446478,-163.34993731,0.00016215,2]
[404252295,1770005446487,-500.0,0.00016215,2]
[404252296,1770005446497,-290.39862941,0.00016266,2]
[404252297,1770005446507,-166.66,0.00016272,2]
[404252298,1770005446516,-181.08010149,0.00016319,2]
[404252299,1770005446526,-1481.23780761,0.00016319,2]
[404252300,1770005446535,-217.15233878,0.00016319,2]
[404252301,1770005446544,-891.61887448,0.00016319,2]
[404252302,1770005446552,-217.15233878,0.00016319,2]
[404252303,1770005446562,-301.1433787,0.00016321,2]
[404252304,1770005446571,-337.49,0.00016356,2]
[404252305,1770005446583,-267.02,0.00016403,2]
[404252306,1770005446592,-1872.11781497,0.00016438,2]
[404252307,1770005446601,-500.0,0.00016438,2]
[404252308,1770005446611,-500.0,0.00016438,2]
[404252309,1770005446621,-419.34493254,0.00016438,2]
[404252310,1770005446630,-507.22,0.00016438,2]
[404252311,1770005446640,-250.55733734,0.00016438,2]
[404252312,1770005446650,-800.78453244,0.00016438,2]
[404252313,1770005446659,-1000.0,0.00016438,2]
[404252314,1770005446669,-151.0,0.00016438,2]
[404252315,1770005446679,-179.48047234,0.00016448,2]
[404252316,1770005446688,-500.0,0.00016493,2]
[404252317,1770005446698,-16283.79473793,0.00016507,2]
[404252318,1770005446708,-1000.0,0.00016515,2]
[404252319,1770005446718,-15553.21923692,0.00016521,2]
[404252320,1770005446727,-159.99157324,0.00016534,2]
[404252321,1770005446736,-500.0,0.00016548,2]
[404252322,1770005446745,-245.72294872,0.00016558,2]
[404252323,1770005446755,-1500.0,0.00016568,2]
[404252324,1770005446764,-545.1454494,0.00016568,2]
[404252325,1770005446774,-1500.0,0.00016568,2]
[404252326,1770005446783,-1500.0,0.00016568,2]
[404252327,1770005446792,-1500.0,0.00016568,2]
[404252328,1770005446802,-1500.0,0.00016568,2]
[404252329,1770005446811,-1500.0,0.00016568,2]
[404252330,1770005446820,-1500.0,0.00016568,2]
[404252331,1770005446834,-1500.0,0.00016568,2]
[404252333,1770005446843,-665.40489721,0.00016568,2]
[404252335,1770005446853,-1004.26216588,0.00016568,2]
[404252337,1770005446863,-505.45817911,0.00016568,2]
[404252339,1770005446872,-1500.0,0.00016568,2]
[404252341,1770005446882,-622.87168328,0.00016568,2]
[404252343,1770005446892,-1005.24936027,0.00016568,2]
[404252345,1770005446905,-240.83933027,0.00016568,2]
[404252347,1770005446915,-1500.0,0.00016568,2]
[404252349,1770005446925,-504.30163313,0.00016568,2]
[404252351,1770005446935,-343.08326797,0.00016568,2]
[404252354,1770005446944,-776.88278142,0.00016568,2]
[404252356,1770005446954,-504.6853335,0.00016568,2]
[404252358,1770005446963,-1500.0,0.00016568,2]
[404252360,1770005446972,-1500.0,0.00016568,2]
[404252362,1770005446983,-1500.0,0.00016568,2]
[404252364,1770005446992,-1005.54193795,0.00016568,2]
[404252366,1770005447001,-505.38162593,0.00016568,2]
[404252367,1770005447010,-1500.0,0.00016568,2]
[404252370,1770005447020,-1500.0,0.00016568,2]
[404252372,1770005447029,-3286.0,0.00016586,2]
[404252374,1770005447038,-154.87,0.0001659,2]
[404252376,1770005447048,-1510.0,0.000166,2]
[404252378,1770005447058,-500.0,0.00016602,2]
[404252380,1770005447067,-500.0,0.00016603,2]
[404252382,1770005447079,-10091.57601831,0.00016631,2]
[404252383,1770005447088,-500.0,0.00016657,2]
[404252384,1770005447101,-189.87,0.00016675,2]
[404252385,1770005447111,-500.0,0.00016712,2]
[404252386,1770005447121,-1000.0,0.00016712,2]
[404252387,1770005447130,-165.78,0.00016712,2]
[404252388,1770005447141,-2832.0,0.0001672,2]
[404252389,1770005447151,-166.66,0.00016747,2]
[404252390,1770005447161,-502.28798495,0.00016763,2]
[404252391,1770005447170,-500.0,0.00016767,2]
[404252392,1770005447180,-164.61,0.00016768,2]
[404252393,1770005447190,-1500.0,0.000168,2]
[404252394,1770005447199,-168.0,0.00016811,2]
[404252395,1770005447209,-179.48047234,0.00016811,2]
[404252396,1770005447218,-2445.0,0.00016818,2]
[404252397,1770005447228,-6579.0,0.00016818,2]
[404252398,1770005447238,-3253.0,0.00016818,2]
[404252399,1770005447247,-500.0,0.00016822,2]
[404252400,1770005447257,-330.79,0.00016834,2]
[404252401,1770005447267,-187.78006525,0.00016867,2]
[404252402,1770005447276,-1536.04360649,0.00016867,2]
[404252403,1770005447286,-225.18697532,0.00016867,2]
[404252404,1770005447295,-924.60877284,0.00016867,2]
[404252405,1770005447305,-225.18697532,0.00016867,2]
[404252406,1770005447314,-168.0,0.00016874,2]
[404252407,1770005447324,-500.0,0.00016876,2]
[404252408,1770005447334,-163.404548,0.00016905,2]
[404252409,1770005447344,-269.0,0.00016915,2]
[404252410,1770005447353,-151.0,0.00016922,2]
[404252411,1770005447363,-155.468766,0.00016922,2]
[404252412,1770005447372,-151.0,0.00016922,2]
[404252413,1770005447381,-152.959758,0.00016922,2]
[404252414,1770005447390,-500.0,0.00016924,2]
[404252415,1770005447400,-500.0,0.00016931,2]
[404252416,1770005447409,-16283.79473793,0.00016971,2]
[404252417,1770005447419,-15553.21923692,0.00016981,2]
[404252418,1770005447428,-151.0,0.00016981,2]
[404252419,1770005447437,-151.0,0.00016981,2]
[404252420,1770005447447,-500.0,0.00016986,2]
[404252421,1770005447456,-1000.0,0.00016986,2]
[404252422,1770005447465,-2205.73614126,0.00017,3]
[404252423,1770005447475,-157726.06092768,0.00017,2]
[404252424,1770005447485,-300.0,0.00017,2]
[404252425,1770005447495,-151.0,0.00017,2]
[404252426,1770005447505,-309.371222,0.00017,2]
[404252427,1770005447716,-151.0,0.00017,2]
[404252428,1770005447726,-309.371222,0.00017,2]
[404252429,1770005447737,-151.0,0.00017,2]
[404252430,1770005447747,-309.371222,0.00017,2]
[404252431,1770005447756,-309.371222,0.00017,2]
[404252432,1770005447766,-5143.0,0.00017034,2]
[404252433,1770005447775,-841.0,0.0001704,2]
[404252434,1770005447785,-503.86937896,0.00017041,2]
[404252435,1770005447795,-614.3,0.00017041,2]
[404252436,1770005447805,-614.3,0.00017041,2]
[404252437,1770005447815,-4670.0,0.0001706,2]
[404252438,1770005447824,-269.0,0.0001709,2]
[404252439,1770005447840,-1547.3093134,0.000171,2]
[404252440,1770005447850,-1000.0,0.00017112,2]
[404252441,1770005447860,-1988.36339388,0.00017116,2]
[404252442,1770005447869,-1756.98671009,0.00017116,2]
[404252443,1770005447878,-1008.230722,0.00017116,2]
[404252444,1770005447888,-2000.0,0.00017116,2]
[404252445,1770005447898,-1143.18674336,0.00017116,2]
[404252446,1770005447908,-315.28060531,0.00017116,2]
[404252447,1770005447917,-2000.0,0.00017116,2]
[404252448,1770005447927,-2000.0,0.00017116,2]
[404252449,1770005447936,-2128.18837233,0.00017116,2]
[404252450,1770005447947,-1474.64879752,0.00017116,2]
[404252451,1770005447957,-2000.0,0.00017116,2]
[404252452,1770005447967,-2000.0,0.00017116,2]
[404252453,1770005447976,-1006.20015718,0.00017116,2]
[404252454,1770005447986,-2000.0,0.00017116,2]
[404252455,1770005447996,-1189.68040771,0.00017116,2]
[404252456,1770005448006,-200.0,0.00017121,2]
[404252457,1770005448016,-150.00045973,0.00017122,2]
[404252458,1770005448026,-334.5472959,0.0001714,2]
[404252459,1770005448035,-151.0,0.00017144,2]
[404252460,1770005448045,-267.0,0.00017144,2]
[404252461,1770005448054,-150.0,0.00017144,2]
[404252462,1770005448064,-200.0,0.00017144,2]
[404252463,1770005448073,-228.629,0.00017144,2]
[404252464,1770005448086,-277.537,0.00017144,2]
[404252465,1770005448096,-196.165,0.00017144,2]
[404252466,1770005448108,-165.436,0.00017144,2]
[404252467,1770005448118,-158.676,0.00017144,2]
[404252468,1770005448127,-199.072,0.00017144,2]
[404252469,1770005448136,-285.665,0.00017144,2]
[404252470,1770005448147,-151.345,0.00017144,2]
[404252471,1770005448157,-151.0,0.00017144,2]
[404252472,1770005448166,-1338.357,0.00017144,2]
[404252473,1770005448177,-3497.391,0.00017144,2]
[404252474,1770005448187,-1410.0,0.00017144,2]
[404252475,1770005448196,-728.464,0.00017144,2]
[404252476,1770005448206,-161.033,0.00017144,2]
[404252477,1770005448216,-1278.693,0.00017144,2]
[404252478,1770005448226,-925.751,0.00017144,2]
[404252479,1770005448236,-1205.0,0.00017144,2]
[404252480,1770005448246,-151.0,0.00017144,2]
[404252481,1770005448255,-151.0,0.00017144,2]
[404252482,1770005448265,-151.0,0.00017144,2]
[404252483,1770005448275,-151.0,0.00017144,2]
[404252484,1770005448284,-151.0,0.00017144,2]
[404252485,1770005448293,-379.112663,0.00017144,2]
[404252486,1770005448303,-379.112663,0.00017144,2]
[404252487,1770005448312,-379.112663,0.00017144,2]
[404252488,1770005448322,-379.112663,0.00017144,2]
[404252489,1770005448333,-168.0,0.00017149,2]
[404252490,1770005448342,-179.48047234,0.00017174,2]